fUSD/lending_fUSD_20260513
["ID","MTS","AMOUNT","RATE_DAILY","PERIOD"]
[422158835,1778639432000,-500.0,0.00013406,2]
[422158830,1778639432000,-500.0,0.00013406,2]
[422158831,1778639432000,-500.0,0.00013406,2]
[422158827,1778639432000,-500.0,0.00013406,2]
[422158832,1778639432000,-500.0,0.00013406,2]
[422158833,1778639432000,-500.0,0.00013406,2]
[422158836,1778639432000,-500.0,0.00013406,2]
[422158837,1778639432000,-2045.0,0.00013407,5]
[422158857,1778639433000,-400.0,0.00013407,2]
[422158856,1778639433000,-500.0,0.00013406,2]
[422158860,1778639437000,-500.0,0.00013406,2]
[422158879,1778639437000,-2109.85,0.00013502,2]
[422158881,1778639437000,-164.50922326,0.00013507,2]
[422158877,1778639437000,-2043.74440603,0.00013491,2]
[422158873,1778639437000,-150.0,0.00013488,2]
[422158884,1778639437000,-150.0,0.00013514,2]
[422158878,1778639437000,-13534.3402994,0.00013491,2]
[422158883,1778639437000,-8480.4708879,0.00013513,2]
[422158882,1778639437000,-36645.0101864,0.00013509,2]
[422158875,1778639437000,-150.0,0.00013488,2]
[422158876,1778639437000,-150.0,0.00013488,2]
[422158874,1778639437000,-150.0,0.00013488,2]
[422158861,1778639437000,-500.0,0.00013406,2]
[422158871,1778639437000,-150.0,0.00013488,2]
[422158870,1778639437000,-150.0,0.00013488,2]
[422158867,1778639437000,-350.0,0.00013483,2]
[422158869,1778639437000,-150.0,0.00013488,2]
[422158864,1778639437000,-796.9509005,0.00013407,2]
[422158868,1778639437000,-150.07363201,0.00013485,2]
[422158866,1778639437000,-11110.85338725,0.00013476,2]
[422158865,1778639437000,-17244.05296694,0.00013407,2]
[422158885,1778639437000,-150.0,0.00013539,2]
[422158862,1778639437000,-95.85053915,0.00013407,2]
[422158859,1778639437000,-400.28318085,0.00013406,2]
[422158872,1778639437000,-150.0,0.00013488,2]
[422158886,1778639437000,-214.91342137,0.00013551,2]
[422158863,1778639437000,-301.76454383,0.00013407,2]
[422158887,1778639437000,-150.0,0.00013565,2]
[422158888,1778639437000,-150.0,0.00013571,2]
[422158916,1778639437000,-500.0,0.00013607,2]
[422158921,1778639437000,-500.0,0.00013607,2]
[422158919,1778639437000,-500.0,0.00013607,2]
[422158914,1778639437000,-500.0,0.00013607,2]
[422158912,1778639437000,-500.0,0.00013607,2]
[422158913,1778639437000,-500.0,0.00013607,2]
[422158911,1778639437000,-500.0,0.00013607,2]
[422158909,1778639437000,-500.0,0.00013607,2]
[422158903,1778639437000,-500.0,0.00013607,2]
[422158902,1778639437000,-500.0,0.00013607,2]
[422158901,1778639437000,-500.0,0.00013607,2]
[422158905,1778639437000,-500.0,0.00013607,2]
[422158880,1778639437000,-1555.955,0.00013507,2]
[422158900,1778639437000,-500.0,0.00013607,2]
[422158892,1778639437000,-516.94609672,0.00013583,2]
[422158889,1778639437000,-150.0,0.00013571,2]
[422158891,1778639437000,-150.0,0.00013576,2]
[422158890,1778639437000,-169690.3235783,0.00013574,2]
[422158894,1778639437000,-500.0,0.00013583,2]
[422158899,1778639437000,-500.0,0.00013607,2]
[422158895,1778639437000,-150.0,0.00013591,2]
[422158897,1778639437000,-500.0,0.00013607,2]
[422158898,1778639437000,-500.0,0.00013607,2]
[422158896,1778639437000,-150.0,0.00013595,2]
[422158907,1778639437000,-500.0,0.00013607,2]
[422158893,1778639437000,-397.84647269,0.00013583,2]
[422159024,1778639438000,-162.05932772,0.00013698,2]
[422159022,1778639438000,-505.20982406,0.00013698,2]
[422159006,1778639438000,-500.0,0.00013698,2]
[422158992,1778639438000,-502.56578458,0.00013698,2]
[422159004,1778639438000,-500.0,0.00013698,2]
[422158987,1778639438000,-500.0,0.00013698,2]
[422159000,1778639438000,-500.0,0.00013698,2]
[422158996,1778639438000,-500.0,0.00013698,2]
[422158983,1778639438000,-500.0,0.00013698,2]
[422159026,1778639438000,-500.0,0.00013698,2]
[422159002,1778639438000,-500.0,0.00013698,2]
[422159028,1778639438000,-500.0,0.00013698,2]
[422159008,1778639438000,-500.0,0.00013698,2]
[422159019,1778639438000,-505.50097699,0.00013698,2]
[422159033,1778639438000,-500.0,0.00013698,2]
[422159015,1778639438000,-500.0,0.00013698,2]
[422159011,1778639438000,-500.0,0.00013698,2]
[422159013,1778639438000,-500.0,0.00013698,2]
[422158990,1778639438000,-500.0,0.00013698,2]
[422159017,1778639438000,-500.0,0.00013698,2]
[422159035,1778639438000,-500.0,0.00013698,2]
[422159039,1778639438000,-500.0,0.00013698,2]
[422159051,1778639438000,-830.48,0.00013698,2]
[422159037,1778639438000,-608.0,0.00013698,2]
[422159052,1778639438000,-830.48,0.00013698,2]
[422159031,1778639438000,-507.77368398,0.00013698,2]
[422158985,1778639438000,-244.79909942,0.00013698,2]
[422158977,1778639438000,-500.0,0.00013698,2]
[422158971,1778639438000,-500.0,0.00013698,2]
[422158925,1778639438000,-500.0,0.00013607,2]
[422158929,1778639438000,-150.0,0.00013617,2]
[422158927,1778639438000,-517.89,0.00013607,2]
[422158931,1778639438000,-11110.85338717,0.00013634,2]
[422158922,1778639438000,-500.0,0.00013607,2]
[422158935,1778639438000,-500.0,0.00013639,2]
[422158933,1778639438000,-150.0,0.00013638,2]
[422158937,1778639438000,-500.0,0.00013639,2]
[422158939,1778639438000,-500.0,0.00013639,2]
[422158953,1778639438000,-150.0,0.00013669,2]
[422158950,1778639438000,-150.0,0.00013654,2]
[422158943,1778639438000,-150.0,0.00013643,2]
[422158994,1778639438000,-500.0,0.00013698,2]
[422158941,1778639438000,-500.0,0.00013639,2]
[422158952,1778639438000,-150.0,0.00013664,2]
[422158956,1778639438000,-9101.593,0.00013684,2]
[422158945,1778639438000,-13534.34029932,0.00013648,2]
[422158958,1778639438000,-2043.74440599,0.00013692,2]
[422158959,1778639438000,-150.0,0.00013694,2]
[422158962,1778639438000,-500.0,0.00013698,2]
[422158975,1778639438000,-500.0,0.00013698,2]
[422159055,1778639438000,-830.48,0.00013698,2]
[422158966,1778639438000,-500.0,0.00013698,2]
[422158973,1778639438000,-500.0,0.00013698,2]
[422158979,1778639438000,-500.0,0.00013698,2]
[422158969,1778639438000,-500.0,0.00013698,2]
[422158948,1778639438000,-150.0,0.00013654,2]
[422159044,1778639438000,-500.0,0.00013698,2]
[422158998,1778639438000,-500.0,0.00013698,2]
[422159057,1778639438000,-500.0,0.00013698,2]
[422159117,1778639438000,-150.0,0.00013702,2]
[422159128,1778639438000,-500.0,0.00013722,2]
[422159129,1778639438000,-500.0,0.00013722,2]
[422159126,1778639438000,-150.0,0.0001372,2]
[422159124,1778639438000,-200.0,0.0001372,2]
[422159131,1778639438000,-500.0,0.00013722,2]
[422159115,1778639438000,-200.0,0.00013699,2]
[422159135,1778639438000,-500.0,0.00013722,2]
[422159133,1778639438000,-500.0,0.00013722,2]
[422159136,1778639438000,-500.0,0.00013722,2]
[422159137,1778639438000,-500.0,0.00013722,2]
[422159149,1778639438000,-500.0,0.00013722,2]
[422159113,1778639438000,-166.66,0.00013699,2]
[422159138,1778639438000,-500.0,0.00013722,2]
[422159153,1778639438000,-500.0,0.00013722,2]
[422159139,1778639438000,-500.0,0.00013722,2]
[422159151,1778639438000,-500.0,0.00013722,2]
[422159147,1778639438000,-500.0,0.00013722,2]
[422159140,1778639438000,-500.0,0.00013722,2]
[422159141,1778639438000,-500.0,0.00013722,2]
[422159142,1778639438000,-500.0,0.00013722,2]
[422159163,1778639438000,-150.0,0.00013737,2]
[422159159,1778639438000,-163.35770873,0.00013734,2]
[422159155,1778639438000,-263.16091522,0.00013722,2]
[422159042,1778639438000,-500.0,0.00013698,2]
[422159161,1778639438000,-1002.01916522,0.00013734,2]
[422159145,1778639438000,-500.0,0.00013722,2]
[422159120,1778639438000,-595.980059,0.0001371,2]
[422159157,1778639438000,-331.77212326,0.00013723,2]
[422159109,1778639438000,-500.0,0.00013698,2]
[422159122,1778639438000,-1952.990027,0.0001371,2]
[422159046,1778639438000,-500.0,0.00013698,2]
[422159058,1778639438000,-356.17682839,0.00013698,2]
[422159061,1778639438000,-500.0,0.00013698,2]
[422159080,1778639438000,-500.0,0.00013698,2]
[422159067,1778639438000,-431.69745624,0.00013698,2]
[422159063,1778639438000,-500.0,0.00013698,2]
[422159073,1778639438000,-500.0,0.00013698,2]
[422159084,1778639438000,-500.0,0.00013698,2]
[422159075,1778639438000,-500.0,0.00013698,2]
[422159071,1778639438000,-500.0,0.00013698,2]
[422159069,1778639438000,-503.35448234,0.00013698,2]
[422159082,1778639438000,-500.0,0.00013698,2]
[422159048,1778639438000,-830.48,0.00013698,2]
[422159065,1778639438000,-500.0,0.00013698,2]
[422159078,1778639438000,-500.0,0.00013698,2]
[422159095,1778639438000,-500.0,0.00013698,2]
[422159104,1778639438000,-500.0,0.00013698,2]
[422159091,1778639438000,-500.0,0.00013698,2]
[422159107,1778639438000,-500.0,0.00013698,2]
[422159086,1778639438000,-500.0,0.00013698,2]
[422159100,1778639438000,-500.0,0.00013698,2]
[422159102,1778639438000,-507.15627863,0.00013698,2]
[422159093,1778639438000,-500.0,0.00013698,2]
[422159111,1778639438000,-500.0,0.00013698,2]
[422159088,1778639438000,-500.0,0.00013698,2]
[422159098,1778639438000,-500.0,0.00013698,2]
[422159251,1778639439000,-500.0,0.00013882,2]
[422159231,1778639439000,-150.0,0.00013849,2]
[422159229,1778639439000,-18514.0674504,0.00013846,2]
[422159249,1778639439000,-830.48,0.00013882,2]
[422159225,1778639439000,-150.0,0.0001384,2]
[422159244,1778639439000,-500.0,0.00013882,2]
[422159235,1778639439000,-200.0,0.00013857,2]
[422159236,1778639439000,-150.0,0.00013875,2]
[422159210,1778639439000,-300.0,0.00013821,2]
[422159242,1778639439000,-233.99417586,0.00013882,2]
[422159247,1778639439000,-500.0,0.00013882,2]
[422159267,1778639439000,-150.0,0.00013904,2]
[422159240,1778639439000,-500.0,0.00013882,2]
[422159238,1778639439000,-500.0,0.00013882,2]
[422159253,1778639439000,-500.0,0.00013882,2]
[422159246,1778639439000,-500.0,0.00013882,2]
[422159257,1778639439000,-500.0,0.00013882,2]
[422159261,1778639439000,-156.48177233,0.00013894,2]
[422159265,1778639439000,-150.0,0.00013901,2]
[422159275,1778639439000,-150.0,0.00013928,2]
[422159259,1778639439000,-127975.0717023,0.00013883,2]
[422159269,1778639439000,-150.0,0.00013904,2]
[422159214,1778639439000,-150.0,0.00013824,2]
[422159271,1778639439000,-150.0,0.00013916,2]
[422159233,1778639439000,-503.68627816,0.00013857,2]
[422159208,1778639439000,-150.0,0.00013821,2]
[422159198,1778639439000,-13534.34029932,0.00013804,2]
[422159206,1778639439000,-150.0,0.00013821,2]
[422159255,1778639439000,-500.0,0.00013882,2]
[422159167,1778639439000,-150.0,0.00013737,2]
[422159173,1778639439000,-150.0,0.00013752,2]
[422159175,1778639439000,-150.0,0.00013772,2]
[422159177,1778639439000,-500.0,0.00013783,2]
[422159164,1778639439000,-150.0,0.00013737,2]
[422159169,1778639439000,-150.0,0.00013746,2]
[422159171,1778639439000,-4711.6215449,0.0001375,2]
[422159183,1778639439000,-152.0,0.00013785,2]
[422159194,1778639439000,-11110.85338717,0.00013792,2]
[422159179,1778639439000,-500.0,0.00013783,2]
[422159185,1778639439000,-152.0,0.00013785,2]
[422159192,1778639439000,-150.0,0.00013787,2]
[422159200,1778639439000,-150.0,0.00013809,2]
[422159190,1778639439000,-150.0,0.00013787,2]
[422159181,1778639439000,-501.36855681,0.00013783,2]
[422159189,1778639439000,-152.0,0.00013785,2]
[422159187,1778639439000,-161.54718026,0.00013785,2]
[422159196,1778639439000,-150.0,0.00013798,2]
[422159202,1778639439000,-152.0,0.00013814,2]
[422159218,1778639439000,-300.0,0.00013837,2]
[422159220,1778639439000,-300.0,0.00013837,2]
[422159204,1778639439000,-2109.85,0.00013816,2]
[422159227,1778639439000,-22064.3308455,0.00013846,2]
[422159216,1778639439000,-166.66,0.00013836,2]
[422159222,1778639439000,-361.21427826,0.00013837,2]
[422159281,1778639439000,-681.29153,0.0001394,2]
[422159212,1778639439000,-300.0,0.00013821,2]
[422159263,1778639439000,-2043.74440599,0.00013894,2]
[422159350,1778639439000,-1000.0,0.00014084,2]
[422159336,1778639439000,-1539.0,0.00014071,2]
[422159340,1778639439000,-153.91819496,0.00014071,2]
[422159332,1778639439000,-150.0,0.0001407,2]
[422159334,1778639439000,-1539.0,0.00014071,2]
[422159338,1778639439000,-1577.28095997,0.00014071,2]
[422159354,1778639439000,-166.66667,0.00014084,2]
[422159356,1778639439000,-166.66666,0.00014084,2]
[422159364,1778639439000,-150.0,0.00014105,2]
[422159363,1778639439000,-2043.74440599,0.00014095,2]
[422159358,1778639439000,-681.29153,0.00014084,2]
[422159357,1778639439000,-166.66667,0.00014084,2]
[422159362,1778639439000,-150.0,0.00014087,2]
[422159359,1778639439000,-681.29153,0.00014084,2]
[422159352,1778639439000,-166.66666,0.00014084,2]
[422159360,1778639439000,-681.29154,0.00014084,2]
[422159361,1778639439000,-150.0,0.00014087,2]
[422159353,1778639439000,-166.66667,0.00014084,2]
[422159355,1778639439000,-166.66666,0.00014084,2]
[422159367,1778639439000,-166.66,0.0001411,2]
[422159365,1778639439000,-150.0,0.00014108,2]
[422159371,1778639439000,-200.0,0.00014136,2]
[422159374,1778639439000,-150.0,0.00014154,2]
[422159366,1778639439000,-11110.85338717,0.00014109,2]
[422159369,1778639439000,-150.0,0.0001413,2]
[422159351,1778639439000,-806.98550916,0.00014084,2]
[422159372,1778639439000,-156.84,0.00014145,2]
[422159279,1778639439000,-350.0,0.00013938,2]
[422159342,1778639439000,-150.0,0.00014082,2]
[422159346,1778639439000,-1000.0,0.00014084,2]
[422159273,1778639439000,-150.0,0.00013927,2]
[422159277,1778639439000,-150.0,0.00013937,2]
[422159285,1778639439000,-1585.0,0.0001395,5]
[422159299,1778639439000,-681.29153,0.0001396,2]
[422159289,1778639439000,-150.0,0.00013953,2]
[422159283,1778639439000,-681.29153,0.0001394,2]
[422159291,1778639439000,-331.77212326,0.00013959,2]
[422159301,1778639439000,-13534.34029932,0.00013961,2]
[422159305,1778639439000,-150.0,0.00013979,2]
[422159315,1778639439000,-51923.55580954,0.0001399,2]
[422159303,1778639439000,-166.66,0.00013973,2]
[422159313,1778639439000,-150.0,0.00013987,2]
[422159287,1778639439000,-11110.85338717,0.00013951,2]
[422159321,1778639439000,-150.0,0.00014004,2]
[422159319,1778639439000,-250.0,0.00014,2]
[422159349,1778639439000,-1000.0,0.00014084,2]
[422159343,1778639439000,-1000.0,0.00014084,2]
[422159347,1778639439000,-1000.0,0.00014084,2]
[422159330,1778639439000,-150.0,0.0001407,2]
[422159310,1778639439000,-150.0,0.00013987,2]
[422159328,1778639439000,-150.0,0.00014056,2]
[422159323,1778639439000,-150.0,0.00014017,2]
[422159317,1778639439000,-200.0,0.00013996,2]
[422159307,1778639439000,-150.0,0.00013987,2]
[422159325,1778639439000,-150.0,0.00014023,2]
[422159327,1778639439000,-150.0,0.0001403,2]
[422159419,1778639440000,-150.0,0.00014451,2]
[422159420,1778639440000,-150.0,0.00014457,2]
[422159424,1778639440000,-150.0,0.00014487,2]
[422159423,1778639440000,-206.16226867,0.00014476,2]
[422159427,1778639440000,-150.0,0.00014487,2]
[422159425,1778639440000,-150.0,0.00014487,2]
[422159416,1778639440000,-331.77212326,0.00014429,2]
[422159428,1778639440000,-150.0,0.00014495,2]
[422159418,1778639440000,-150.0,0.00014444,2]
[422159415,1778639440000,-11110.85338717,0.00014425,2]
[422159409,1778639440000,-150.0,0.00014387,2]
[422159421,1778639440000,-150.0,0.0001447,2]
[422159422,1778639440000,-206.17,0.00014475,2]
[422159417,1778639440000,-13534.34029932,0.0001443,2]
[422159447,1778639440000,-150.0,0.0001457,2]
[422159449,1778639440000,-150.0,0.00014573,2]
[422159445,1778639440000,-150.0,0.0001457,2]
[422159431,1778639440000,-255.0,0.00014519,2]
[422159430,1778639440000,-206.17,0.00014511,2]
[422159441,1778639440000,-309.26,0.00014557,2]
[422159432,1778639440000,-150.0,0.00014521,2]
[422159429,1778639440000,-2043.74440599,0.00014497,2]
[422159439,1778639440000,-152.0,0.00014549,2]
[422159443,1778639440000,-150.0,0.00014558,2]
[422159435,1778639440000,-150.0,0.00014546,2]
[422159433,1778639440000,-150.0,0.00014537,2]
[422159410,1778639440000,-150.0,0.00014392,2]
[422159453,1778639440000,-13534.34029932,0.00014587,2]
[422159471,1778639440000,-150.0,0.00014653,2]
[422159437,1778639440000,-150.0,0.00014547,2]
[422159403,1778639440000,-150.0,0.0001434,2]
[422159400,1778639440000,-150.0,0.00014315,2]
[422159406,1778639440000,-150.0,0.00014369,2]
[422159384,1778639440000,-150.0,0.00014237,2]
[422159385,1778639440000,-150.0,0.00014237,2]
[422159381,1778639440000,-150.0,0.00014211,2]
[422159380,1778639440000,-331.77212326,0.00014194,2]
[422159465,1778639440000,-350.0,0.00014645,2]
[422159387,1778639440000,-150.0,0.00014237,2]
[422159388,1778639440000,-567.89414662,0.0001424,2]
[422159383,1778639440000,-150.0,0.00014237,2]
[422159382,1778639440000,-150.0,0.00014237,2]
[422159392,1778639440000,-11110.85338717,0.00014267,2]
[422159401,1778639440000,-150.0,0.0001432,2]
[422159394,1778639440000,-150.0,0.00014281,2]
[422159398,1778639440000,-1000.0,0.000143,2]
[422159395,1778639440000,-150.0,0.00014289,2]
[422159391,1778639440000,-150.0,0.00014263,2]
[422159393,1778639440000,-13534.34029932,0.00014274,2]
[422159396,1778639440000,-2043.74440599,0.00014296,2]
[422159399,1778639440000,-314.0,0.000143,2]
[422159390,1778639440000,-1000.02174918,0.0001425,2]
[422159389,1778639440000,-166.66,0.00014247,2]
[422159397,1778639440000,-308.0,0.000143,2]
[422159402,1778639440000,-150.0,0.0001432,2]
[422159404,1778639440000,-150.0,0.00014344,2]
[422159413,1778639440000,-150.0,0.00014404,2]
[422159414,1778639440000,-150.0,0.00014418,2]
[422159408,1778639440000,-150.0,0.00014387,2]
[422159411,1778639440000,-350.0,0.00014402,2]
[422159407,1778639440000,-166.66,0.00014384,2]
[422159405,1778639440000,-150.0,0.00014366,2]
[422159412,1778639440000,-150.0,0.00014404,2]
[422159386,1778639440000,-150.0,0.00014237,2]
[422159455,1778639440000,-150.0,0.00014599,2]
[422159475,1778639440000,-309.26,0.00014663,2]
[422159515,1778639440000,-25000.0,0.00014882,3]
[422159505,1778639440000,-350.0,0.00014837,2]
[422159516,1778639440000,-150.0,0.00014883,2]
[422159504,1778639440000,-150.0,0.00014836,2]
[422159517,1778639440000,-25000.0,0.00014891,3]
[422159512,1778639440000,-25000.0,0.00014874,3]
[422159511,1778639440000,-25000.0,0.00014865,3]
[422159506,1778639440000,-25000.0,0.00014838,3]
[422159514,1778639440000,-500.0,0.00014882,2]
[422159510,1778639440000,-150.0,0.00014857,2]
[422159507,1778639440000,-234.66857943,0.00014846,2]
[422159508,1778639440000,-25000.0,0.00014847,3]
[422159509,1778639440000,-25000.0,0.00014856,3]
[422159513,1778639440000,-150.0,0.00014879,2]
[422159529,1778639440000,-4754.8717736,0.000149,2]
[422159518,1778639440000,-150.0,0.00014898,2]
[422159527,1778639440000,-816.35068246,0.000149,2]
[422159519,1778639440000,-331.77212326,0.000149,2]
[422159521,1778639440000,-20964.39457639,0.000149,3]
[422159520,1778639440000,-25000.0,0.000149,3]
[422159526,1778639440000,-11110.85338717,0.000149,2]
[422159525,1778639440000,-2043.74440599,0.000149,2]
[422159522,1778639440000,-1309.7573696,0.000149,2]
[422159524,1778639440000,-1291.50056687,0.000149,2]
[422159523,1778639440000,-1003.54875731,0.000149,2]
[422159451,1778639440000,-11110.85338717,0.00014584,2]
[422159528,1778639440000,-13534.34029932,0.000149,2]
[422159532,1778639440000,-30673.65659094,0.000149,2]
[422159531,1778639440000,-151.0,0.000149,2]
[422159492,1778639440000,-13534.34029932,0.00014743,2]
[422159496,1778639440000,-150.0,0.00014772,2]
[422159530,1778639440000,-1858.13228918,0.000149,2]
[422159497,1778639440000,-150.0,0.0001478,2]
[422159502,1778639440000,-1309.7573696,0.00014828,2]
[422159469,1778639440000,-150.0,0.00014652,2]
[422159457,1778639440000,-350.0,0.00014612,2]
[422159459,1778639440000,-150.0,0.00014625,2]
[422159461,1778639440000,-150.0,0.00014634,2]
[422159473,1778639440000,-150.0,0.00014653,2]
[422159463,1778639440000,-309.26,0.00014639,2]
[422159488,1778639440000,-150.0,0.00014737,2]
[422159487,1778639440000,-150.0,0.00014728,2]
[422159479,1778639440000,-411.67,0.00014666,2]
[422159490,1778639440000,-150.0,0.00014737,2]
[422159484,1778639440000,-4416.55036381,0.000147,2]
[422159485,1778639440000,-150.0,0.00014702,2]
[422159477,1778639440000,-331.77212326,0.00014665,2]
[422159482,1778639440000,-150.0,0.00014687,2]
[422159467,1778639440000,-150.0,0.0001465,2]
[422159478,1778639440000,-150.0,0.00014665,2]
[422159480,1778639440000,-150.0,0.00014676,2]
[422159501,1778639440000,-150.0,0.0001482,2]
[422159491,1778639440000,-11110.85338717,0.00014742,2]
[422159495,1778639440000,-1309.75736962,0.00014756,2]
[422159500,1778639440000,-150.0,0.0001482,2]
[422159498,1778639440000,-150.0,0.00014805,2]
[422159494,1778639440000,-150.0,0.00014754,2]
[422159493,1778639440000,-1680.0,0.00014747,2]
[422159489,1778639440000,-150.0,0.00014737,2]
[422159499,1778639440000,-150.0,0.0001481,2]
[422159503,1778639440000,-150.0,0.00014831,2]
[422159483,1778639440000,-2043.74440599,0.00014699,2]
[422159486,1778639440000,-150.0,0.00014722,2]
[422159481,1778639440000,-150.0,0.00014687,2]
[422159565,1778639441000,-500.0,0.00014999,2]
[422159577,1778639441000,-500.0,0.00014999,2]
[422159557,1778639441000,-500.0,0.00014999,2]
[422159562,1778639441000,-500.0,0.00014999,2]
[422159564,1778639441000,-500.0,0.00014999,2]
[422159571,1778639441000,-607.33085502,0.00014999,2]
[422159569,1778639441000,-500.0,0.00014999,2]
[422159574,1778639441000,-500.0,0.00014999,2]
[422159572,1778639441000,-500.0,0.00014999,2]
[422159567,1778639441000,-621.30717845,0.00014999,2]
[422159573,1778639441000,-500.0,0.00014999,2]
[422159568,1778639441000,-500.0,0.00014999,2]
[422159582,1778639441000,-500.0,0.00014999,2]
[422159575,1778639441000,-500.0,0.00014999,2]
[422159576,1778639441000,-500.0,0.00014999,2]
[422159584,1778639441000,-500.0,0.00014999,2]
[422159581,1778639441000,-254.28762829,0.00014999,2]
[422159585,1778639441000,-500.0,0.00014999,2]
[422159579,1778639441000,-500.0,0.00014999,2]
[422159578,1778639441000,-500.0,0.00014999,2]
[422159583,1778639441000,-500.0,0.00014999,2]
[422159580,1778639441000,-500.0,0.00014999,2]
[422159588,1778639441000,-500.0,0.00014999,2]
[422159587,1778639441000,-500.0,0.00014999,2]
[422159560,1778639441000,-500.0,0.00014999,2]
[422159570,1778639441000,-500.0,0.00014999,2]
[422159566,1778639441000,-500.0,0.00014999,2]
[422159545,1778639441000,-223.8056358,0.00014986,2]
[422159563,1778639441000,-500.0,0.00014999,2]
[422159586,1778639441000,-500.0,0.00014999,2]
[422159534,1778639441000,-150.0,0.00014903,2]
[422159536,1778639441000,-150.0,0.00014909,2]
[422159543,1778639441000,-150.00000001,0.00014986,2]
[422159533,1778639441000,-151.0,0.000149,2]
[422159537,1778639441000,-350.0,0.00014918,2]
[422159539,1778639441000,-150.0,0.00014935,2]
[422159540,1778639441000,-160.0,0.00014956,2]
[422159541,1778639441000,-150.0,0.0001496,2]
[422159538,1778639441000,-156.84,0.00014931,2]
[422159542,1778639441000,-246.98,0.00014985,2]
[422159535,1778639441000,-150.0,0.00014903,2]
[422159556,1778639441000,-500.0,0.00014999,2]
[422159548,1778639441000,-152.4005079,0.00014986,2]
[422159547,1778639441000,-262.25245996,0.00014986,2]
[422159546,1778639441000,-235.24788961,0.00014986,2]
[422159550,1778639441000,-173.07391408,0.00014986,2]
[422159549,1778639441000,-264.67472406,0.00014986,2]
[422159554,1778639441000,-1089.74768572,0.00014999,5]
[422159555,1778639441000,-500.0,0.00014999,2]
[422159551,1778639441000,-358.85145659,0.0001499,2]
[422159552,1778639441000,-358.85145659,0.0001499,2]
[422159553,1778639441000,-151.0,0.00014997,2]
[422159558,1778639441000,-500.0,0.00014999,2]
[422159561,1778639441000,-500.0,0.00014999,2]
[422159559,1778639441000,-500.0,0.00014999,2]
[422159544,1778639441000,-178.92576556,0.00014986,2]
[422159589,1778639441000,-500.0,0.00014999,2]
[422159634,1778639441000,-500.0,0.00014999,2]
[422159600,1778639441000,-830.48,0.00014999,2]
[422159635,1778639441000,-500.0,0.00014999,2]
[422159622,1778639441000,-500.0,0.00014999,2]
[422159648,1778639441000,-102776.35750818,0.00015,2]
[422159633,1778639441000,-500.0,0.00014999,2]
[422159623,1778639441000,-500.0,0.00014999,2]
[422159632,1778639441000,-500.0,0.00014999,2]
[422159627,1778639441000,-500.0,0.00014999,2]
[422159625,1778639441000,-500.0,0.00014999,2]
[422159624,1778639441000,-500.0,0.00014999,2]
[422159631,1778639441000,-500.0,0.00014999,2]
[422159626,1778639441000,-500.0,0.00014999,2]
[422159630,1778639441000,-500.0,0.00014999,2]
[422159621,1778639441000,-500.0,0.00014999,2]
[422159628,1778639441000,-394.07930603,0.00014999,2]
[422159637,1778639441000,-500.0,0.00014999,2]
[422159645,1778639441000,-200.000001,0.00015,2]
[422159641,1778639441000,-160.27959462,0.00014999,2]